[Event "Bicaz City Cup 2020"]
[Site "Bicaz"]
[Date "2020.03.08"]
[Round "7.16"]
[White "Ienasoaie, Rafael"]
[Black "Ienasoaie, Gabriel"]
[Result "0-1"]
[ECO "B90"]
[WhiteElo "1883"]
[BlackElo "1685"]
[Annotator "NA RC"]
[PlyCount "148"]
[EventDate "2020.03.05"]
[EventType "swiss"]
[EventCountry "ROU"]
[SourceTitle "playchess.com"]
[Source "ChessBase"]
[SourceQuality "1"]
[TimeControl "5400+30"]

1. e4 {[%emt 0:00:00]} c5 {[%emt 0:05:28]} 2. Nf3 {[%emt 0:05:06]} d6 {[%emt 0:05:20]} 3. d4 {[%emt 0:03:16]} cxd4 {[%emt 0:08:07]} 4. Nxd4 {[%emt 0:00:11]} Nf6 {[%emt 0:01:57]} 5. Nc3 {[%emt 0:04:04]} a6 {[%emt 0:02:32]} 6. Bc4 {[%emt 0:00:56]} e6 {[%emt 0:03:40]} 7. Bb3 {[%emt 0:00:44]} Be7 {[%emt 0:03:18]} 8. O-O {[%emt 0:05:02]} O-O {[%emt 0:02:09]} 9. Kh1 {[%emt 0:06:26]} Nc6 {[%emt 0:01:28] B86: Sicilian Scheveningen/Najdorf: 6 Bc4, without early ...b5.} 10. Be3 {[%emt 0:02:58]} Qc7 {[%emt 0:03:50]} 11. h3 {[%emt 0:05:59] [#]} Nxd4 $146 {[%emt 0:03:36]} ({Predecessor:} 11... Na5 12. f4 b5 13. a3 Bb7 14. Qf3 Nc4 15. Bxc4 Qxc4 16. Rae1 b4 17. axb4 Qxb4 {1-0 (29) Ghareb,A (1887)-Mohamed,T (2278) Zgazig 2013}) 12. Qxd4 {[%emt 0:01:30]} Bd7 {[%emt 0:05:03]} 13. Rab1 {[%emt 0:01:05]} Rab8 {[%emt 0:02:13]} 14. Ra1 {[%emt 0:00:30]} Ra8 {[%emt 0:00:10]} 15. Rad1 {[%emt 0:02:25]} Bc6 {[%emt 0:01:23]} 16. Rc1 {[%emt 0:03:38]} Rab8 {[%emt 0:00:52]} 17. Rb1 {[%emt 0:02:55]} Ra8 {[%emt 0:03:19]} 18. Rbd1 {[%emt 0:02:52]} Rac8 {[%emt 0:01:52]} 19. a3 {[%emt 0:00:31]} b5 {[%emt 0:02:08]} 20. Rfe1 {[%emt 0:05:20]} Rfe8 {[%emt 0:02:10]} 21. Bg5 {[%emt 0:03:55]} Red8 {[%emt 0:01:22]} 22. Bc1 {[%emt 0:00:17]} Qb7 {[%emt 0:02:09]} 23. f4 {[%emt 0:01:50]} Ne8 {[%emt 0:02:01]} (23... a5 $17 24. f5 b4 25. axb4 axb4) 24. Qf2 {[%emt 0:01:47]} a5 {[%emt 0:00:42]} 25. f5 {[%emt 0:01:20]} e5 {[%emt 0:05:00] [#]} 26. Qe2 {[%emt 0:00:43]} (26. g4 $1 $16) 26... Nf6 {[%emt 0:01:01]} 27. Qe3 $11 {[%emt 0:00:28] and White is okay.} Ne8 {[%emt 0:00:09]} 28. Rf1 {[%emt 0:00:46]} Nf6 {[%emt 0:00:27]} 29. Rde1 $2 {[%emt 0:00:22]} Bf8 {[%emt 0:00:48]} 30. Re2 {[%emt 0:01:17]} Re8 {[%emt 0:00:11]} 31. Rfe1 {[%emt 0:00:07]} Rcd8 {[%emt 0:00:14]} 32. Qf2 {[%emt 0:00:16]} (32. Qg3 $14 {keeps the upper hand.}) 32... Qa8 {[%emt 0:00:15]} 33. Bg5 {[%emt 0:00:21]} Be7 {[%emt 0:00:11]} 34. Qg3 {[%emt 0:00:18]} Qb7 {[%emt 0:00:28]} 35. Kh2 {[%emt 0:01:11]} b4 {[%emt 0:02:45]} 36. axb4 {[%emt 0:00:36]} axb4 {[%emt 0:00:04]} 37. Nd5 {[%emt 0:00:46]} Kh8 {[%emt 0:02:21]} 38. h4 $2 {[%emt 0:05:58]} (38. Bxf6 $16 Bxf6 39. Nxf6 gxf6 40. Rd1) 38... Nxd5 {[%emt 0:02:23]} 39. exd5 {[%emt 0:05:03]} Bxd5 {[%emt 0:00:12]} 40. Bxd5 {[%emt 0:01:35]} Qxd5 {[%emt 0:00:06]} 41. Rd2 {[%emt 0:01:54]} Qc5 {[%emt 0:00:57]} 42. Re4 {[%emt 0:03:08] [#]} f6 $1 {[%emt 0:00:27]} 43. Be3 {[%emt 0:01:51]} Qc6 {[%emt 0:00:10]} 44. Rxb4 {[%emt 0:00:38]} d5 {[%emt 0:00:06]} 45. Rg4 {[%emt 0:01:12]} Bf8 {[%emt 0:00:09]} 46. c3 {[%emt 0:00:06]} Qd7 {[%emt 0:00:19]} ({Black should play} 46... h5 $19 47. Rg6 {[#]} d4 $1 {[%mdl 512]}) 47. Rf2 {[%emt 0:01:14]} Qf7 {[%emt 0:00:12]} 48. Ra4 {[%emt 0:00:34]} Rd7 {[%emt 0:02:01]} 49. Rd2 {[%emt 0:01:06]} Red8 {[%emt 0:00:56]} 50. Qf3 {[%emt 0:00:30]} Be7 {[%emt 0:01:45]} 51. g3 {[%emt 0:00:53]} Bf8 {[%emt 0:00:05]} 52. Qd1 {[%emt 0:00:19]} e4 {[%emt 0:02:14]} 53. Ra5 {[%emt 0:01:35]} g6 {[%emt 0:02:09]} 54. fxg6 {[%emt 0:00:34]} hxg6 {[%emt 0:00:11]} 55. b4 {[%emt 0:00:32]} Qe6 {[%emt 0:01:50]} 56. Qe2 {[%emt 0:00:30]} Bd6 {[%emt 0:01:00]} 57. Kg2 {[%emt 0:00:24]} Bc7 {[%emt 0:00:30]} 58. Ra6 {[%emt 0:00:34]} Qe5 {[%emt 0:00:08]} 59. Qf2 {[%emt 0:00:11]} Kh7 {[%emt 0:03:19]} 60. Rxf6 {[%emt 0:01:45]} Qxc3 {[%emt 0:00:50]} 61. Bd4 $18 {[%emt 0:01:04]} Qb3 {[%emt 0:01:18]} 62. Rf7+ {[%emt 0:06:32]} Kg8 {[%emt 0:00:11]} 63. Rxd7 {[%emt 0:03:24]} Rxd7 {[%emt 0:00:10]} 64. Rb2 {[%emt 0:00:24]} Qd3 {[%emt 0:02:48]} 65. b5 {[%emt 0:00:54]} Rf7 {[%emt 0:00:24]} 66. Qe3 {[%emt 0:00:13]} Qf1+ {[%emt 0:01:40]} 67. Kh2 {[%emt 0:00:50]} Rf3 {[%emt 0:00:15]} 68. Qg1 {[%emt 0:00:44]} Bxg3+ {[%emt 0:00:10]} 69. Kh1 {[%emt 0:00:07]} Qh3+ {[%emt 0:00:06]} 70. Rh2 {[%emt 0:00:17]} Qxh2+ {[%emt 0:00:09]} 71. Qxh2 {[%emt 0:00:10]} Bxh2 {[%emt 0:00:02]} 72. Kxh2 {[%emt 0:00:11]} e3 {[%emt 0:00:15]} 73. b6 {[%emt 0:00:20]} e2 {[%emt 0:00:07]} 74. b7 {[%emt 0:00:02]} Rb3 {[%emt 0:00:08]} 0-1

[Event "Bicaz City Cup 2020"]
[Site "Bicaz"]
[Date "2020.03.08"]
[Round "7.17"]
[White "Chiprian, Ionel"]
[Black "Vasile, Alexandru"]
[Result "0-1"]
[ECO "A27"]
[WhiteElo "1861"]
[BlackElo "1658"]
[Annotator "NA RC"]
[PlyCount "86"]
[EventDate "2020.03.05"]
[EventType "swiss"]
[EventCountry "ROU"]
[SourceTitle "playchess.com"]
[Source "ChessBase"]
[SourceQuality "1"]
[TimeControl "5400+30"]

1. c4 {[%emt 0:00:00]} e5 {[%emt 0:00:00]} 2. Nc3 {[%emt 0:00:00]} Nc6 {[%emt 0:00:00]} 3. Nf3 {[%emt 0:00:00]} g6 {[%emt 0:00:06]} 4. g3 {[%emt 0:00:14]} Bg7 {[%emt 0:00:07]} 5. Bg2 {[%emt 0:00:14]} d6 {[%emt 0:00:09]} 6. d3 {[%emt 0:00:14]} Nf6 {[%emt 0:01:34]} 7. O-O {[%emt 0:00:09]} O-O {[%emt 0:00:05]} 8. Bd2 {[%emt 0:00:04]} Bf5 {[%emt 0:01:04]} 9. Nh4 {[%emt 0:00:32]} Be6 {[%emt 0:00:08]} 10. Nf3 {[%emt 0:00:10]} h6 {[%emt 0:00:34]} 11. Rb1 {[%emt 0:01:33] A26: English Opening vs King's Indian with ...Nc6 and d3.} Qd7 {[%emt 0:05:43]} 12. Re1 {[%emt 0:01:32]} Bh3 {[%emt 0:00:14]} 13. Bh1 {[%emt 0:00:08] [#]} Ng4 $146 {[%emt 0:00:04]} ({Predecessor:} 13... Nh5 14. Nd5 f5 15. b4 f4 16. b5 Nd8 17. Qc2 c6 18. Nc3 Qg4 19. Bg2 fxg3 20. Bxh3 gxf2+ 21. Kxf2 Qxh3 {0-1 (30) Dragaberg,R (1869)-Jacobsen,H (1935) Faroe Islands 2018}) 14. Nd5 {[%emt 0:01:23]} Nd8 {[%emt 0:03:26]} 15. e4 {[%emt 0:01:18]} c6 {[%emt 0:00:29]} 16. Ne3 {[%emt 0:00:16]} Ne6 {[%emt 0:03:16]} 17. Qc1 {[%emt 0:08:07]} Kh7 {[%emt 0:00:28]} 18. b4 {[%emt 0:00:10]} Nxe3 {[%emt 0:00:34]} 19. Bxe3 {[%emt 0:00:30]} f5 {[%emt 0:00:43]} 20. Bg2 {[%emt 0:02:12]} Bxg2 {[%emt 0:00:52]} 21. Kxg2 {[%emt 0:00:03]} f4 {[%emt 0:00:38]} 22. Bd2 {[%emt 0:00:16]} g5 {[%emt 0:11:50]} 23. g4 {[%emt 0:10:33] [#]} ({White should try} 23. h3 $15) 23... Nc5 $19 {[%emt 0:10:16]} 24. h3 {[%emt 0:07:23]} Nxd3 {[%emt 0:00:23]} 25. Qc2 {[%emt 0:00:09]} Nxe1+ {[%emt 0:00:09]} 26. Rxe1 {[%emt 0:00:01]} Bf6 {[%emt 0:04:54]} 27. Rg1 {[%emt 0:01:15]} Kg7 {[%emt 0:02:06]} 28. Bc3 {[%emt 0:00:10]} Qe6 {[%emt 0:00:55]} 29. Nd2 {[%emt 0:00:41]} b5 {[%emt 0:01:44]} 30. f3 {[%emt 0:01:52]} bxc4 {[%emt 0:01:30]} 31. a3 {[%emt 0:00:30]} Rad8 {[%emt 0:05:42]} 32. Bb2 {[%emt 0:01:08]} d5 {[%emt 0:00:20]} 33. Rc1 {[%emt 0:00:20]} a6 {[%emt 0:03:33]} 34. Qa4 {[%emt 0:03:17]} Qc8 {[%emt 0:00:45]} 35. Qa5 {[%emt 0:04:13]} Qb7 {[%emt 0:02:24]} 36. Qc5 {[%emt 0:05:24]} Qb5 {[%emt 0:01:19]} 37. Qf2 {[%emt 0:00:25]} a5 {[%emt 0:00:42]} 38. Rb1 {[%emt 0:01:10]} axb4 {[%emt 0:01:54]} 39. axb4 {[%emt 0:00:03]} d4 {[%emt 0:01:00]} 40. Bc1 {[%emt 0:00:27]} Ra8 {[%emt 0:00:51]} 41. Nf1 {[%emt 0:03:19]} c3 {[%emt 0:00:40]} 42. h4 {[%emt 0:15:10]} Ra4 {[%emt 0:01:37]} 43. h5 {[%emt 0:01:25]} Rfa8 {[%emt 0:00:23]} 0-1

[Event "Bicaz City Cup 2020"]
[Site "Bicaz"]
[Date "2020.03.08"]
[Round "7.18"]
[White "Pitigoi, Sabina-Andreea"]
[Black "Saioc, David"]
[Result "0-1"]
[ECO "A46"]
[WhiteElo "1687"]
[BlackElo "1837"]
[Annotator "NA RC"]
[PlyCount "98"]
[EventDate "2020.03.05"]
[EventType "swiss"]
[EventCountry "ROU"]
[SourceTitle "playchess.com"]
[Source "ChessBase"]
[SourceQuality "1"]
[TimeControl "5400+30"]

1. d4 {[%emt 0:00:00]} Nf6 {[%emt 0:10:41]} 2. Nf3 {[%emt 0:00:00]} e6 {[%emt 0:00:13]} 3. c4 {[%emt 0:00:00]} c5 {[%emt 0:00:08]} 4. Nc3 {[%emt 0:02:47]} cxd4 {[%emt 0:03:42]} 5. Nxd4 {[%emt 0:00:08]} d5 {[%emt 0:01:30]} 6. Bg5 {[%emt 0:09:10]} dxc4 {[%emt 0:08:55]} 7. e4 {[%emt 0:03:07]} a6 {[%emt 0:24:57]} ({Black should try} 7... Bc5 $11 8. Nf3 Qc7) 8. Bxc4 {[%emt 0:06:06]} Nbd7 {[%emt 0:07:45]} 9. a3 {[%emt 0:06:16]} Be7 {[%emt 0:04:47]} 10. Nf3 {[%emt 0:05:29]} b5 {[%emt 0:03:19]} 11. Bd3 {[%emt 0:03:59]} Bb7 {[%emt 0:00:26]} 12. b4 {[%emt 0:04:21]} Rc8 {[%emt 0:04:46]} 13. Rc1 {[%emt 0:00:56]} Nd5 {[%emt 0:05:23]} 14. Bxe7 {[%emt 0:05:02]} Nxe7 {[%emt 0:00:10]} 15. O-O {[%emt 0:00:43]} Ng6 {[%emt 0:01:24]} 16. Bb1 {[%emt 0:04:51]} O-O {[%emt 0:00:33]} 17. Qd2 {[%emt 0:01:21]} Qe7 {[%emt 0:00:41]} 18. Ne2 $15 {[%emt 0:07:54]} Nde5 {[%emt 0:01:25]} 19. Nxe5 {[%emt 0:01:30]} Nxe5 {[%emt 0:00:06]} 20. Rfd1 {[%emt 0:00:46]} Nc4 {[%emt 0:02:11]} 21. Qa2 {[%emt 0:05:17]} Rfd8 {[%emt 0:00:44]} 22. h3 {[%emt 0:06:13]} Qh4 {[%emt 0:02:25]} 23. Ng3 {[%emt 0:01:20]} Ne3 {[%emt 0:02:28]} 24. Rxc8 {[%emt 0:05:07]} Rxc8 {[%emt 0:00:05]} 25. Re1 {[%emt 0:02:20]} Nc4 {[%emt 0:00:12]} 26. Rd1 {[%emt 0:02:28]} Ne3 {[%emt 0:00:19]} 27. Re1 {[%emt 0:00:23]} Nc4 {[%emt 0:00:20]} 28. Rd1 {[%emt 0:00:05]} Rd8 {[%emt 0:00:03]} 29. Rd3 {[%emt 0:02:26]} Rxd3 {[%emt 0:01:30]} 30. Bxd3 {[%emt 0:00:05]} Ne5 {[%emt 0:00:10]} 31. Qc2 {[%emt 0:03:06]} Qd8 {[%emt 0:00:08]} 32. Bf1 {[%emt 0:01:52]} g6 {[%emt 0:01:12]} 33. Qc3 {[%emt 0:01:13]} Qd6 {[%emt 0:00:30]} 34. Kh1 {[%emt 0:07:12]} h5 {[%emt 0:01:15]} 35. f4 {[%emt 0:01:10]} Nc4 {[%emt 0:04:35]} 36. e5 {[%emt 0:01:54]} Qd5 {[%emt 0:00:42]} 37. Ne2 {[%emt 0:01:07]} Nd2 {[%emt 0:00:52]} 38. Qc1 {[%emt 0:00:30]} Nxf1 {[%emt 0:00:58]} 39. Qxf1 {[%emt 0:00:04]} Qd3 {[%emt 0:00:48]} 40. Qf2 {[%emt 0:00:45]} Bd5 {[%emt 0:00:51]} 41. Nc1 {[%emt 0:00:50]} Qxa3 {[%emt 0:01:26]} 42. Qc5 {[%emt 0:00:27]} Qb2 {[%emt 0:00:09]} 43. Qg1 {[%emt 0:00:25]} Qxb4 {[%emt 0:00:12]} 44. Ne2 {[%emt 0:00:32]} Qd2 {[%emt 0:00:38]} 45. Qb6 {[%emt 0:00:40]} Qxe2 {[%emt 0:00:21]} 46. Qd8+ {[%emt 0:00:08]} Kh7 {[%emt 0:00:05]} 47. Qg5 {[%emt 0:00:52]} Qxg2+ {[%emt 0:00:10]} 48. Qxg2 {[%emt 0:00:04]} Bxg2+ {[%emt 0:00:05]} 49. Kxg2 {[%emt 0:00:02]} b4 {[%emt 0:00:06]} 0-1

[Event "Bicaz City Cup 2020"]
[Site "Bicaz"]
[Date "2020.03.08"]
[Round "7.19"]
[White "Bulgaru, Daniel-Alexandru"]
[Black "Tablan, Andrei-Damian"]
[Result "0-1"]
[ECO "B90"]
[WhiteElo "1706"]
[BlackElo "1808"]
[Annotator "NA RC"]
[PlyCount "62"]
[EventDate "2020.03.05"]
[EventType "swiss"]
[EventCountry "ROU"]
[SourceTitle "playchess.com"]
[Source "ChessBase"]
[SourceQuality "1"]
[TimeControl "5400+30"]

1. e4 {[%emt 0:00:00]} c5 {[%emt 0:00:10]} 2. Nf3 {[%emt 0:00:00]} d6 {[%emt 0:00:09]} 3. d4 {[%emt 0:00:05]} cxd4 {[%emt 0:00:07]} 4. Nxd4 {[%emt 0:00:04]} Nf6 {[%emt 0:00:26]} 5. Nc3 {[%emt 0:00:06]} a6 {[%emt 0:00:14]} 6. Be3 {[%emt 0:00:13]} b5 {[%emt 0:00:37]} 7. f3 {[%emt 0:00:16]} Bb7 {[%emt 0:00:11]} 8. Qd2 {[%emt 0:00:53]} e6 {[%emt 0:00:24]} 9. Bd3 {[%emt 0:05:32] B80: Sicilian Scheveningen: 6 g3 and 6 Be3, including English Attack.} Nbd7 {[%emt 0:00:14]} 10. Qf2 {[%emt 0:02:34]} Rc8 {[%emt 0:02:55]} 11. O-O {[%emt 0:00:45]} Be7 {[%emt 0:00:22] [#]} 12. Rac1 $146 {[%emt 0:03:39]} ({Predecessor:} 12. Rae1 O-O 13. Kh1 Ne5 14. Bc1 Nfd7 15. f4 Nxd3 16. cxd3 Bh4 17. g3 Bf6 18. Rd1 {0-1 (33) Filewicz,P (1719)-Nasuta,G (2270) Bialystok 2012}) 12... O-O {[%emt 0:02:24]} 13. Rfd1 {[%emt 0:04:24]} Ne5 {[%emt 0:11:01]} 14. Nb3 {[%emt 0:06:57]} Nfd7 {[%emt 0:09:54]} 15. a4 {[%emt 0:04:43]} b4 {[%emt 0:01:29]} 16. Na2 {[%emt 0:02:15]} (16. Nb1 $15) 16... a5 {[%emt 0:05:20]} (16... d5 $17 17. Bd4 Bd6) 17. Qe2 {[%emt 0:01:06]} Nc5 {[%emt 0:01:16]} 18. Nxc5 {[%emt 0:00:34]} dxc5 {[%emt 0:00:37]} 19. Bb5 {[%emt 0:00:44]} Qb6 {[%emt 0:02:18]} 20. f4 {[%emt 0:00:31]} (20. b3 $15) 20... Nc6 $15 {[%emt 0:02:37]} 21. Rd7 {[%emt 0:06:15]} Rfd8 {[%emt 0:16:57]} 22. Rcd1 {[%emt 0:04:30]} Rxd7 {[%emt 0:01:24]} 23. Rxd7 {[%emt 0:00:14]} Rc7 {[%emt 0:01:11]} 24. Qd3 {[%emt 0:04:21]} Nd4 {[%emt 0:01:17]} 25. Rxc7 {[%emt 0:01:38]} Qxc7 {[%emt 0:00:11]} 26. c3 {[%emt 0:01:31]} Nxb5 {[%emt 0:00:47]} 27. axb5 {[%emt 0:00:40]} c4 {[%emt 0:00:33]} 28. Qd4 {[%emt 0:00:59]} b3 {[%emt 0:01:08]} 29. Nc1 {[%emt 0:01:24]} a4 {[%emt 0:00:35]} 30. Ne2 {[%emt 0:14:45]} a3 {[%emt 0:00:14]} 31. bxa3 {[%emt 0:00:57]} b2 {[%emt 0:00:10]} 0-1

[Event "Bicaz City Cup 2020"]
[Site "Bicaz"]
[Date "2020.03.08"]
[Round "7.20"]
[White "Apostolakii, Olga"]
[Black "Dumitru, Luca-Serban"]
[Result "0-1"]
[ECO "A25"]
[WhiteElo "1629"]
[BlackElo "1788"]
[Annotator "NA RC"]
[PlyCount "60"]
[EventDate "2020.03.05"]
[EventType "swiss"]
[EventCountry "ROU"]
[SourceTitle "playchess.com"]
[Source "ChessBase"]
[SourceQuality "1"]
[TimeControl "5400+30"]

1. c4 {[%emt 0:00:00]} e5 {[%emt 0:05:29]} 2. Nc3 {[%emt 0:00:00]} Nc6 {[%emt 0:01:38]} 3. g3 {[%emt 0:00:00]} Bb4 {[%emt 0:00:43]} 4. Nd5 {[%emt 0:02:19]} Bc5 {[%emt 0:00:57]} 5. Bg2 {[%emt 0:02:29]} d6 {[%emt 0:01:52]} 6. d3 {[%emt 0:02:04]} Nge7 {[%emt 0:03:46]} 7. a3 {[%emt 0:04:36]} Nxd5 {[%emt 0:02:37]} 8. cxd5 {[%emt 0:02:19]} Ne7 {[%emt 0:00:23]} 9. e4 {[%emt 0:04:42]} c6 {[%emt 0:02:04]} 10. dxc6 {[%emt 0:01:43]} Nxc6 {[%emt 0:02:01]} 11. Ne2 {[%emt 0:04:03]} a5 {[%emt 0:03:56]} 12. O-O {[%emt 0:04:07]} Be6 {[%emt 0:00:38]} 13. Nc3 {[%emt 0:04:07]} O-O {[%emt 0:03:32]} 14. Be3 {[%emt 0:07:42]} Nd4 {[%emt 0:01:52]} 15. Nd5 {[%emt 0:11:30]} a4 {[%emt 0:06:56]} 16. Bxd4 {[%emt 0:04:22]} Bxd4 {[%emt 0:03:05]} 17. Rb1 {[%emt 0:00:25]} Qd7 {[%emt 0:03:35]} 18. Qd2 {[%emt 0:08:20]} Rfc8 {[%emt 0:02:23]} 19. Qb4 {[%emt 0:11:31]} Bxd5 {[%emt 0:02:29]} 20. exd5 {[%emt 0:00:09]} Rc2 {[%emt 0:00:40]} 21. b3 {[%emt 0:02:10]} Bc5 {[%emt 0:01:26]} 22. Qh4 {[%emt 0:02:21]} axb3 {[%emt 0:02:48]} 23. d4 {[%emt 0:03:07]} Bxd4 {[%emt 0:03:25]} 24. Be4 {[%emt 0:00:07]} g6 {[%emt 0:01:52]} 25. Bxc2 {[%emt 0:01:21]} bxc2 {[%emt 0:00:09]} 26. Rb4 {[%emt 0:07:04]} Bxf2+ {[%emt 0:02:37]} 27. Kxf2 {[%emt 0:03:33]} Qf5+ {[%emt 0:00:13]} 28. Kg2 {[%emt 0:01:15]} Qxf1+ {[%emt 0:00:07]} 29. Kxf1 {[%emt 0:00:17]} c1=Q+ {[%emt 0:00:07]} 30. Kg2 {[%emt 0:01:02]} Qd2+ {[%emt 0:00:09]} 0-1